Cogmind - Beta 15 @@@ ROGUE MODE // 2025.09.12 @ 15:52:36 Player: Petvaria Result: Destroyed by C-35 Carver with Carbide Saw Performance ------------- Evolutions (7) 3500 Regions Visited (7) 1400 Robots Destroyed (30) 150 Value Destroyed (915) 915 Prototype IDs (25) 500 Alien Tech Used (0) 0 Bonus (2349) 2349 TOTAL SCORE: 8814 Bonus ------- Follower Combat Kills 1549 Registered with UFD 300 Met Optimus in HQ 500 Cogmind --------- Core Integrity 0/1300 Matter 248/300 Energy 82/100 System Corruption 0% Temperature Cool (0) Movement Core (50) Location -3/Research Parts ------- > --- POWER (2) -------- (None) > --- PROPULSION (7) --- (None) > --- UTILITY (10) ----- (None) > --- WEAPON (2) ------- (None) > --- INVENTORY (5) ---- Microactuators Cooled Phase Cannon Peak State ------------ > --- POWER ------------ Graviton Reactor > --- PROPULSION ------- Overtuned Treads Medium Treads Overtuned Titanium Leg > --- UTILITY ---------- Active Sensor Suite Makeshift Light Armor Plating Rainbow Chip > --- WEAPON ----------- Makeshift Hammer > --- INVENTORY -------- (None) [Rating: 67] Favorites ----------- Power Light Nuclear Core Engine Light Ion Engine Power Core Light Nuclear Core Reactor Graviton Reactor Propulsion Light Treads Treads Light Treads Leg Overtuned Titanium Leg Flight Unit Field Propulsion Array Utility Rainbow Chip Device Active Sensor Suite Storage Medium Storage Unit Processor Rainbow Chip Hackware System Shield Protection Scrap Shield Weapon Subdweller Machine Gun Energy Gun Medium Laser Energy Cannon Heavy Phase Cannon Ballistic Gun Subdweller Machine Gun Ballistic Cannon Battle Cannon Impact Weapon Makeshift Hammer Special Melee Weapon Datajack Build | -11 -10 -10 -7 -7 -5 -4 -3 ------- Run | Yrd Mat Sub Rec Scr Fac Fac Res Slots Evolved 14 | . . . . . 10 2 2 Power 1 | . . . . . . 1 . Propulsion 5 | . . . . . 3 1 1 Utility 8 | . . . . . 7 . 1 Weapon . | . . . . . . . . Parts Attached 44 | 6 4 9 2 9 5 5 4 Power 4 | 1 1 1 . 1 . . . Engine 2 | 1 . 1 . . . . . Core 1 | . 1 . . . . . . Reactor 1 | . . . . 1 . . . Propulsion 15 | 2 . 2 . 5 1 2 3 Treads 9 | 2 . 2 . 5 . . . Leg 2 | . . . . . 1 1 . Wheel . | . . . . . . . . Hover . | . . . . . . . . Flight 4 | . . . . . . 1 3 Utility 10 | 1 1 2 1 1 3 1 . Device 3 | . . . . . 2 1 . Storage 2 | 1 1 . . . . . . Processor 1 | . . 1 . . . . . Hackware 1 | . . . . . 1 . . Protection 3 | . . 1 1 1 . . . Artifact . | . . . . . . . . Weapon 15 | 2 2 4 1 2 1 2 1 Energy Gun 3 | 1 1 . . . . 1 . Energy Cannon 2 | . . . . . . 1 1 Ballistic Gun 7 | 1 . 3 . 2 1 . . Ballistic Cannon 1 | . . . 1 . . . . Launcher . | . . . . . . . . Special Weapon . | . . . . . . . . Impact Weapon 1 | . . 1 . . . . . Slashing Weapon . | . . . . . . . . Piercing Weapon . | . . . . . . . . Special Melee Weapon 1 | . 1 . . . . . . Unidentified Prototypes 8 | . . . . 3 1 2 2 Parts Lost 20 | . . 1 2 3 11 1 2 Power 3 | . . 1 1 . 1 . . Propulsion 7 | . . . . 1 3 1 2 Utility 7 | . . . 1 1 5 . . Weapon 3 | . . . . 1 2 . . Highest Loss Streak 9 | . . 1 2 3 9 1 1 To Critical Strikes . | . . . . . . . . Average Backups 4 | 3 8 4 3 4 1 1 1 Power . | . 1 . . . . . . Propulsion 1 | 2 4 . . 1 . . . Utility . | . . . . . . 1 1 Weapon 2 | . 2 2 3 2 . . . Tool/Special . | . . . . . . . . Unused Backups 16 | . 1 6 . 3 . 5 1 Power . | . . . . . . . . Propulsion 6 | . 1 3 . 1 . 1 . Utility 5 | . . . . . . 4 1 Weapon 5 | . . 3 . 2 . . . Tool/Special . | . . . . . . . . Average Slot Usage (%) 75 | . 85 81 75 78 37 3 2 Engine 1 | . 2 3 . . . . . Core 3 | . 11 7 . . . . . Treads 26 | . 28 26 29 28 8 . . Storage 1 | . 14 . . . . . . Processor 6 | . . 4 9 10 4 . . Protection 8 | . . 10 5 10 4 . . Energy Gun 8 | . 13 10 9 6 . . . Ballistic Gun 11 | . 14 15 15 9 . . . Ballistic Cannon 3 | . . . 4 8 . . . Impact Weapon 1 | . . . . 4 4 . . Peak Build Rating 67 | 6 9 29 27 40 67 26 17 Average Rating 24 | 4 7 19 24 31 59 10 8 On Entrance 14 | . 6 9 29 26 40 2 . Naked Turns 159 | . . . . . 2 87 70 Heaviest Build 32 | 11 19 32 31 22 26 3 . Greatest Support 76 | 40 40 60 60 76 46 15 16 Greatest Overweight (x) 4 | . . . . 3 4 . . Average Overweight (x) . | . . . . . . . . Largest Inventory Capacity 10 | 8 10 10 5 5 5 5 5 Average Capacity 5 | 6 8 5 5 5 5 5 5 Most Carried 10 | 6 10 10 5 5 5 5 4 Average Carried 4 | 3 8 4 5 4 1 2 1 Final Capacity 10 | 8 10 5 5 5 5 5 5 Final Carried 10 | 6 10 5 5 4 2 1 2 Class Distribution -------------------- 73% | Mutant 13% | Subdweller-Tank 4% | Scavenger-Mutant 3% | Scavenger-Assassin 3% | Subdweller-Mutant Dominant Class ---------------- Mutant | -10/Materials Mutant | -10/Subcaves Mutant | -7/Recycling Mutant | -7/Scraptown Scavenger-Assassin | -5/Factory Mutant | -4/Factory Mutant | -3/Research Resources | -11 -10 -10 -7 -7 -5 -4 -3 ----------- Run | Yrd Mat Sub Rec Scr Fac Fac Res Matter Collected 1027 | 234 154 342 64 142 61 14 16 Remotely . | . . . . . . . . Salvage Created 1296 | . 440 523 117 157 59 . . Parts 67 | . 24 37 3 3 . . . Haulers Intercepted 2 | . 2 . . . . . . Recyclers Shooed . | . . . . . . . . Parts Field Recycled . | . . . . . . . . Retrieved Matter . | . . . . . . . . Parts Self-Destructed 22 | . . 22 . . . . . Prevented . | . . . . . . . . Kills | -11 -10 -10 -7 -7 -5 -4 -3 ------- Run | Yrd Mat Sub Rec Scr Fac Fac Res Combat Hostiles Destroyed 28 | . 11 11 2 3 1 . . Melee 1 | . . . . 1 . . . Guns 24 | . 11 11 2 . . . . Classes Destroyed 7 | . 3 1 1 2 . . . Hauler 2 | . 2 . . . . . . Swarmer 8 | . 6 2 . . . . . Grunt 8 | . 5 2 . . 1 . . Sentry 2 | . . . 2 . . . . Subdweller 7 | . . 7 . . . . . Explorer 2 | . . . . 2 . . . Scrapper 1 | . . . . 1 . . . Best Kill Streak 9 | . 9 2 1 1 1 . . Combat Bots Only 9 | . 9 2 1 1 1 . . Max Kills in Single Turn 1 | . 1 1 1 1 1 . . Gunslinging . | . . . . . . . . Exploded . | . . . . . . . . Melee 1 | . . . . 1 . . . Uniques/NPCs Destroyed . | . . . . . . . . Combat | -11 -10 -10 -7 -7 -5 -4 -3 -------- Run | Yrd Mat Sub Rec Scr Fac Fac Res Hostile Shots Fired 557 | . 46 48 90 71 75 73 154 Missed 199 | . 16 18 19 15 16 27 88 Hits 358 | . 30 30 71 56 59 46 66 Melee 19 | . . . . 6 3 . 10 Projectile 339 | . 30 30 71 50 56 46 56 AOE 2 | . . . . . . . 2 Critical Strikes 13 | . . . . 2 6 1 4 Part Disruptions 1 | . . . . 1 . . . Damage Taken 5785 | . 294 552 538 922 1259 684 1536 Core 2716 | . 48 . 63 98 595 596 1316 Absorbed by Shields 23 | . . . . . . . 23 Ignored by Resistances 37 | . . . . 37 . . . Core Remaining (%) 51 | 100 . . . 16 40 48 . Volleys Fired 104 | . 36 47 14 3 2 2 . Largest 3 | . 2 3 3 1 1 1 . Hottest 110 | . 60 110 110 25 28 90 . Shots Fired 213 | . 72 103 31 3 2 2 . Gun 211 | . 72 103 31 3 2 . . Cannon 2 | . . . . . . 2 . Launcher . | . . . . . . . . Special . | . . . . . . . . Kinetic 114 | . 36 56 17 3 2 . . Thermal 99 | . 36 47 14 . . 2 . Explosive . | . . . . . . . . Electromagnetic . | . . . . . . . . Robot Hit Streak 14 | . 5 14 13 . 3 . . Robot Miss Streak 3 | . 3 2 3 . . . . Penetration Max . | . . . . . . . . Secondary Targets 1 | . 1 . . . . . . Max Gunslinging Chain 1 | . 1 . . . . . . Shots Hit Robots 162 | . 47 79 22 9 5 . . Core Hits 56 | . 21 27 6 1 1 . . Critical Kills 1 | . 1 . . . . . . Critical Parts Destroyed 4 | . . 1 . 2 1 . . Critical Strikes 11 | . 1 6 1 2 1 . . Burn 5 | . . 4 1 . . . . Destroy 3 | . 1 2 . . . . . Smash 3 | . . . . 2 1 . . Melee Attacks 68 | . . 19 . 39 10 . . Impact 68 | . . 19 . 39 10 . . Slashing . | . . . . . . . . Piercing . | . . . . . . . . Sneak Attacks . | . . . . . . . . Combat Hostiles . | . . . . . . . . Follow-up Attacks . | . . . . . . . . Damage Inflicted 2559 | . 573 1214 371 207 186 8 . Guns 2197 | . 573 1214 371 . 39 . . Cannons . | . . . . . . . . Explosions . | . . . . . . . . Melee 353 | . . . . 207 146 . . Ramming 9 | . . . . . 1 8 . Kinetic 1384 | . 342 743 260 . 39 . . Thermal 813 | . 231 471 111 . . . . Explosive . | . . . . . . . . Electromagnetic . | . . . . . . . . Impact 353 | . . . . 207 146 . . Slashing . | . . . . . . . . Piercing . | . . . . . . . . Highest Corruption . | . . . . . . . . Average Corruption . | . . . . . . . . Corruption Purged . | . . . . . . . . Corruption Blocked . | . . . . . . . . Overload Shots . | . . . . . . . . Overflow Damage 120 | . . . . 59 61 . . Projectiles . | . . . . . . . . Explosions . | . . . . . . . . Melee 120 | . . . . 59 61 . . Knockbacks 1 | . . . . . 1 . . Impact 1 | . . . . . 1 . . Kinetic . | . . . . . . . . Secondary . | . . . . . . . . Self-Inflicted Damage 4 | . . . . . . 4 . Shots . | . . . . . . . . Rammed 2 | . . . . . 1 1 . Targets Rammed 2 | . . . . . 1 1 . Kicked . | . . . . . . . . Crushed . | . . . . . . . . Highest Temperature 297 | . 45 8 297 16 15 10 . Average Temperature 85 | . 17 4 192 8 9 7 . Received Heat Transfer 1441 | . 87 144 162 409 558 72 9 Siege Activations . | . . . . . . . . Martial Activations . | . . . . . . . . Shielding Activations . | . . . . . . . . Robots Disrupted . | . . . . . . . . Combat Hostiles . | . . . . . . . . Robots Corrupted 3 | . . . . 2 1 . . Combat Hostiles 3 | . . . . 2 1 . . Parts Fried 3 | . . . . 3 . . . Impact Corruptions 5 | . . . . 3 2 . . Robots Melted . | . . . . . . . . Combat Hostiles . | . . . . . . . . Parts Melted 4 | . . 4 . . . . . Heat Transferred 2634 | . 525 1702 407 . . . . Parts Sabotaged . | . . . . . . . . Parts Stolen . | . . . . . . . . Parts Stripped . | . . . . . . . . Power Chain Reactions . | . . . . . . . . Alert | -11 -10 -10 -7 -7 -5 -4 -3 ------- Run | Yrd Mat Sub Rec Scr Fac Fac Res Maximum Alert Level 1 | . . . . . 1 . 1 Low Security (%) 91 | 100 100 . 100 . 50 100 93 Level 1 8 | . . . . . 49 . 6 Level 2 . | . . . . . . . . Level 3 . | . . . . . . . . Level 4 . | . . . . . . . . Level 5 . | . . . . . . . . High Security . | . . . . . . . . Max Security . | . . . . . . . . Peak Influence 295 | . 180 . 21 . 295 84 265 Initial 84 | . . . 9 . . 84 . Average 48 | . 52 . . . 145 40 66 Influence Increases 1282 | . 285 120 41 . 487 4 345 Destroy 0b10 Robot/C 500 | . 220 80 40 . 160 . . Destroy 0b10 Robot/NC 20 | . 10 . . . 10 . . Destroy Leader 106 | . 54 10 . . 42 . . Allied During Kill 65 | . . . . . 65 . . Destroy Structure 16 | . 1 . 1 . 10 4 . Lose Combat Pursuer 375 | . . 30 . . . . 345 Active Sensor Use 200 | . . . . . 200 . . Influence Decreases 1017 | . 285 101 60 . 314 177 80 Entered New Map 99 | . . . 10 . . 89 . Time Decay 698 | . 285 101 30 . 144 78 60 Lost Part 160 | . . . 20 . 110 10 20 Lost Ally 60 | . . . . . 60 . . Squads Dispatched 13 | . 2 . . . 6 . 5 Investigation 3 | . 1 . . . 2 . . Extermination 1 | . . . . . . . 1 Reinforcement 6 | . 1 . . . 1 . 4 Assault . | . . . . . . . . Garrison 3 | . . . . . 3 . . Intercept . | . . . . . . . . Searches Triggered . | . . . . . . . . Construction Impeded . | . . . . . . . . Haulers Reinforced . | . . . . . . . . Active Scanning Responses 2 | . . . . . 2 . . Cargo Convoy Interrupts . | . . . . . . . . Stealth | -11 -10 -10 -7 -7 -5 -4 -3 --------- Run | Yrd Mat Sub Rec Scr Fac Fac Res Distress Signals 8 | . 4 . . . 1 1 2 Communications Jammed . | . . . . . . . . Distress Signals . | . . . . . . . . Times Spotted 129 | . 22 11 2 39 11 7 37 Peak Tracking Total 17 | . 8 2 2 4 7 5 17 Tactical Retreats 8 | . . 1 . 1 . . 6 Traps | -11 -10 -10 -7 -7 -5 -4 -3 ------- Run | Yrd Mat Sub Rec Scr Fac Fac Res Traps Triggered 5 | . 1 . . . 2 . 2 Indirectly . | . . . . . . . . Trap Hack Attempts 3 | . 3 . . . . . . Triggered . | . . . . . . . . Disarmed . | . . . . . . . . Reprogrammed 1 | . 1 . . . . . . Reused . | . . . . . . . . Traps Extracted . | . . . . . . . . Installed . | . . . . . . . . Triggered . | . . . . . . . . Machines | -11 -10 -10 -7 -7 -5 -4 -3 ---------- Run | Yrd Mat Sub Rec Scr Fac Fac Res Machines Disabled 4 | . . 1 . 3 . . . Max in Single Turn 1 | . . 1 . 1 . . . Machines Repaired . | . . . . . . . . Machines Dismantled . | . . . . . . . . Machines Sabotaged . | . . . . . . . . Overloaded Fab Kills . | . . . . . . . . Hacking | -11 -10 -10 -7 -7 -5 -4 -3 --------- Run | Yrd Mat Sub Rec Scr Fac Fac Res Machines Accessed 6 | . . 2 . 4 . . . Terminals . | . . . . . . . . Fabricators . | . . . . . . . . Repair Stations . | . . . . . . . . Recycling Units . | . . . . . . . . Scanalyzers . | . . . . . . . . Garrison Access . | . . . . . . . . Total Hacks 25 | . . 4 . 21 . . . Successful 25 | . . 4 . 21 . . . Failed . | . . . . . . . . Catastrophic . | . . . . . . . . Database Lockouts . | . . . . . . . . Manual . | . . . . . . . . Terminals . | . . . . . . . . Fabricators . | . . . . . . . . Repair Stations . | . . . . . . . . Recycling Units . | . . . . . . . . Scanalyzers . | . . . . . . . . Garrison Access . | . . . . . . . . Terminal Hacks 25 | . . 4 . 21 . . . Record 19 | . . 3 . 16 . . . Robot Analysis 4 | . . . . 4 . . . Proto ID Catalog 2 | . . 1 . 1 . . . Fabricator Hacks . | . . . . . . . . Repair Station Hacks . | . . . . . . . . Recycling Unit Hacks . | . . . . . . . . Scanalyzer . | . . . . . . . . Garrison Access Hacks . | . . . . . . . . Unauthorized Hacks . | . . . . . . . . Terminals . | . . . . . . . . Fabricators . | . . . . . . . . Repair Stations . | . . . . . . . . Recycling Units . | . . . . . . . . Scanalyzers . | . . . . . . . . Garrison Access . | . . . . . . . . Data Cores Recovered . | . . . . . . . . Used . | . . . . . . . . Hacking Detections . | . . . . . . . . Full Trace Events . | . . . . . . . . Feedback Events . | . . . . . . . . Feedback Blocked . | . . . . . . . . Robot Schematics Acquired . | . . . . . . . . Robots Built . | . . . . . . . . Authchips . | . . . . . . . . Time . | . . . . . . . . Total Robot Build Rating . | . . . . . . . . Part Schematics Acquired . | . . . . . . . . Parts Built . | . . . . . . . . Authchips . | . . . . . . . . Time . | . . . . . . . . Total Part Build Rating . | . . . . . . . . Parts Repaired . | . . . . . . . . Time . | . . . . . . . . Parts Recycled . | . . . . . . . . Recycled Matter . | . . . . . . . . Retrieved Matter . | . . . . . . . . Retrieved Components . | . . . . . . . . Parts Scanalyzed . | . . . . . . . . Part Schematics Acquired . | . . . . . . . . Parts Damaged . | . . . . . . . . Bothacking | -11 -10 -10 -7 -7 -5 -4 -3 ------------ Run | Yrd Mat Sub Rec Scr Fac Fac Res Used RIF Installer . | . . . . . . . . Robots Hacked . | . . . . . . . . Non-combat . | . . . . . . . . Combat . | . . . . . . . . Robot Hacks Applied . | . . . . . . . . Relay Couplers Released . | . . . . . . . . Fabnet Peak Effective % . | . . . . . . . . Robots Rewired . | . . . . . . . . Allies Hacked . | . . . . . . . . Hacks Repelled . | . . . . . . . . Allies | -11 -10 -10 -7 -7 -5 -4 -3 -------- Run | Yrd Mat Sub Rec Scr Fac Fac Res Total Allies 5 | . . . . 4 . 1 . Largest Group 4 | . . . . 4 4 1 . Highest-Rated Group 289 | . . . . 289 285 78 . Highest-Rated Ally 92 | . . . . 92 88 78 . Total Orders . | . . . . . . . . Ally Attacks 274 | . . . . 206 68 . . Total Damage 6347 | . . . . 4685 1662 . . Kills 60 | . . . . 51 9 . . Allies Corrupted . | . . . . . . . . Allies Melted 21 | . . . . 19 2 . . Intel | -11 -10 -10 -7 -7 -5 -4 -3 ------- Run | Yrd Mat Sub Rec Scr Fac Fac Res Active Infowar (turns) 379 | . . . . . 379 . . A.S.S. 379 | . . . . . 379 . . Robot Analysis Total 4 | . . . . 4 . . . Derelict Logs Recovered 2 | . . 1 . 1 . . . Drone Launches . | . . . . . . . . Drone Recoveries . | . . . . . . . . Exploration | -11 -10 -10 -7 -7 -5 -4 -3 ------------- Run | Yrd Mat Sub Rec Scr Fac Fac Res Turns Passed 10461 | 95 996 3895 927 3731 448 190 179 Spaces Moved 6136 | 57 442 2273 541 1896 216 341 370 Core 374 | 12 . . . 34 52 145 131 Treads 5302 | 45 442 2273 541 1862 139 . . Legs 25 | . . . . . 25 . . Wheels . | . . . . . . . . Hover . | . . . . . . . . Flight 435 | . . . . . . 196 239 Fastest Speed 40 | 50 160 160 160 140 50 40 40 Average Speed 145 | 136 160 160 160 158 142 44 45 Slowest Speed 250 | 160 160 160 160 200 250 50 50 Overloaded Moves . | . . . . . . . . Propulsion Burnouts . | . . . . . . . . Robots Hopped 9 | . . . . . . 4 5 Potential Cave-ins . | . . . . . . . . Cave-ins Triggered . | . . . . . . . . Exploration Rate (%) 52 | 6 89 97 88 96 10 12 18 Regions Visited 7 Branch Regions 3 Pre-discovered Areas 5 | . . 1 . 4 . . . Known Exits Taken 1 | . . . . . 1 . . Unknown Exits Taken 6 | 1 1 1 1 1 . 1 . Scrap Searched 13 | . . 8 . 5 . . . Spaces Dug 27 | . . 7 . 14 4 2 . Terrain Destroyed 28 | . . 7 1 14 4 2 . Melee 24 | . . 7 . 13 4 . . Projectile 4 | . . . 1 1 . 2 . AOE . | . . . . . . . . Terrain Rammed . | . . . . . . . . Walls Destroyed . | . . . . . . . . Machines Disabled . | . . . . . . . . Actions | -11 -10 -10 -7 -7 -5 -4 -3 --------- Run | Yrd Mat Sub Rec Scr Fac Fac Res Total 7403 | 74 658 2415 572 2586 343 378 377 Wait 911 | . 165 26 15 602 95 8 . Move 6111 | 56 441 2272 540 1895 215 332 360 Hop 9 | . . . . . . 4 5 Pick Up 59 | 12 6 7 . 11 9 10 4 Fast Attach 14 | . 1 3 1 5 1 3 . Attach 28 | 6 . 3 . 2 10 3 4 Detach 2 | . . . . 1 . . 1 Swap 26 | . 3 15 2 6 . . . Drop 50 | . 3 13 . 22 . 12 . Fire 104 | . 36 47 14 3 2 2 . Melee 68 | . . 19 . 39 10 . . Ram 2 | . . . . . 1 1 . Kick . | . . . . . . . . Crush . | . . . . . . . . Escape Stasis 3 | . . . . . . . 3 Rewire 3 | . . . . . . 3 . Trap 3 | . 3 . . . . . . Miscellaneous 10 | . . 10 . . . . . Route ------- -11/Scrapyard -10/Materials (discovered 4 exits: [*Mat x2] / [*Min] / *Sub) -10/Subcaves (discovered 3 exits: [*Mat x2] / [*Rec]) -7/Recycling (discovered 2 exits: [*Fac] / *Scr) -7/Scraptown (discovered 2 exits: [*Fac x2]) -5/Factory (discovered 5 exits: *Fac x4 / Upp) -4/Factory -3/Research History --------- Turn | Location | Event 7 | -11/Scrapyard | Discovered new exit (range 14) 96 | -11/Scrapyard | Entered Materials 287 | -10/Materials | Destroyed 9 combat bots 316 | -10/Materials | Build established: Mutant 485 | -10/Materials | Discovered new exit (range 10) 763 | -10/Materials | Discovered new exit (range 11) 909 | -10/Materials | Discovered new exit (range 9) 1052 | -10/Materials | Discovered new exit (range 6) 1092 | -10/Materials | Entered Subcaves 1272 | -10/Subcaves | A swath of the cavern ceiling suddenly collapsed 1469 | -10/Subcaves | Shifting Twisted Machinery released Battle Cannon 1473 | -10/Subcaves | Discovered new exit (range 5) 1474 | -10/Subcaves | Shifting Twisted Machinery released Battle Cannon 2083 | -10/Subcaves | A swath of the cavern ceiling suddenly collapsed 2224 | -10/Subcaves | Discovered new exit (range 5) 2983 | -10/Subcaves | Visited 4L-MR0's lab 2999 | -10/Subcaves | Found Rainbow Chip 3000 | -10/Subcaves | Attached Rainbow Chip, gained temporary slots: Power, Propulsion, Utility, Weapon 3239 | -10/Subcaves | Learned Materials terminal intel 4137 | -10/Subcaves | Build established: Subdweller-Tank 4676 | -10/Subcaves | Visited Clippyterm 4681 | -10/Subcaves | Learned Factory garrison access intel 4699 | -10/Subcaves | Learned location of Zion (-7) 4699 | -10/Subcaves | Met a Zionite searching for "candidates" 4984 | -10/Subcaves | Discovered new exit (range 3) 4987 | -10/Subcaves | Entered Recycling 5312 | -7/Recycling | Build established: Mutant 5727 | -7/Recycling | Discovered new exit (range 9) 5876 | -7/Recycling | Scanned before Scraplab entrance 5898 | -7/Recycling | Entered Scraplab 5911 | -7/Recycling | Discovered new exit (range 3) 5914 | -7/Recycling | Entered Scraptown 6366 | -7/Scraptown | Visited Junk Repository 6413 | -7/Scraptown | Visited Shadow of the Wyrm 6435 | -7/Scraptown | Visited The Evicted 6542 | -7/Scraptown | Visited Supply Room 6592 | -7/Scraptown | Visited Spacefarers 7020 | -7/Scraptown | Visited Comm Corps 7110 | -7/Scraptown | Scanned Subdweller tech in exchange for log data 7115 | -7/Scraptown | Learned Research emergency access door positions 7137 | -7/Scraptown | Discovered new exit (range 7) 7290 | -7/Scraptown | Visited Cyclists 7327 | -7/Scraptown | Visited UFD Registry 7327 | -7/Scraptown | Registered with UFD as "Novanuts" 7359 | -7/Scraptown | Entered Cyclist Reading Room 7437 | -7/Scraptown | Visited Science Testing Area 7460 | -7/Scraptown | Visited Junk Repository 7504 | -7/Scraptown | Visited Research Penetration Think Tank 7698 | -7/Scraptown | Visited Derelict Rescue Squad 7735 | -7/Scraptown | Visited Analyses Database 7784 | -7/Scraptown | Visited Cartography Club 7848 | -7/Scraptown | Discovered new exit (range 5) 7973 | -7/Scraptown | Visited Botcube Research 8002 | -7/Scraptown | Visited Science Guys 8056 | -7/Scraptown | Visited LU-1G1's Boring Crew 8358 | -7/Scraptown | Met Optimus 8358 | -7/Scraptown | Accepted into 0bPrime 8758 | -7/Scraptown | Civil war broke out across Scraptown 8816 | -7/Scraptown | Learned location of Storage (-7) 8816 | -7/Scraptown | Learned 8 Factory zone layouts 8816 | -7/Scraptown | Learned location of Quarantine (-3) 8816 | -7/Scraptown | Learned 20 Factory zone layouts 8816 | -7/Scraptown | Learned 8 Upper Caves zone layouts 8816 | -7/Scraptown | Learned 16 Proximity Caves zone layouts 8816 | -7/Scraptown | Learned 4 Hub_04(d) zone layouts 8816 | -7/Scraptown | Learned Factory emergency access door positions 8816 | -7/Scraptown | Learned location of 3 exits from Lower Caves 8816 | -7/Scraptown | Learned location of 2 exits from Proximity Caves 8888 | -7/Scraptown | Lost 9 allies 8895 | -7/Scraptown | Lost 3 parts (1n1u1w) 8909 | -7/Scraptown | Core integrity fell below 50% 8973 | -7/Scraptown | Lost 3 allies 9059 | -7/Scraptown | Found Lrg. Botcube 9065 | -7/Scraptown | Optimus destroyed in the chaos of civil war 9095 | -7/Scraptown | Lrg. Botcube activated 9147 | -7/Scraptown | Found Botcube 9152 | -7/Scraptown | Found Lrg. Botcube 9174 | -7/Scraptown | Lost 21 allies 9180 | -7/Scraptown | Lrg. Botcube activated 9200 | -7/Scraptown | Build established: Scavenger-Mutant 9209 | -7/Scraptown | Botcube activated 9227 | -7/Scraptown | Botcube completed mutation into legged form, armed with 1 gun, 1 melee weapon. 9248 | -7/Scraptown | Lost 5 allies 9336 | -7/Scraptown | Lost 7 allies 9347 | -7/Scraptown | Found Prototype Device 9435 | -7/Scraptown | Lost 3 allies 9437 | -7/Scraptown | Found Botcube 9451 | -7/Scraptown | Botcube activated 9471 | -7/Scraptown | Botcube completed mutation into treaded form, armed with 2 guns. 9525 | -7/Scraptown | Core integrity fell below 20% 9645 | -7/Scraptown | Entered Factory 9645 | -5/Factory | Accompanied by 4 allies 9645 | -5/Factory | Evolved 10 slots: Propulsion x3, Utility x7 9645 | -5/Factory | Identified Active Sensor Suite 9646 | -5/Factory | Identified exit to Factory 9647 | -5/Factory | Identified exit to Upper Caves 9649 | -5/Factory | Loaded intel: 4 garrison access locations 9658 | -5/Factory | Garrison activated, responded to threat 9977 | -5/Factory | Build established: Scavenger-Assassin 10072 | -5/Factory | Found Lrg. Botcube 10077 | -5/Factory | Lost 9 parts (1p3n3u2w) 10084 | -5/Factory | Core integrity fell below 50% 10093 | -5/Factory | Entered another Factory area 10093 | -4/Factory | Evolved 2 slots: Power x1, Propulsion x1 10111 | -4/Factory | Found Quantum Capacitor 10213 | -4/Factory | Lrg. Botcube activated 10252 | -4/Factory | Core integrity fell below 50% 10281 | -4/Factory | Discovered new exit (range 5) 10283 | -4/Factory | Entered Research 10283 | -3/Research | Evolved 2 slots: Propulsion x1, Utility x1 10359 | -3/Research | Build established: Mutant 10391 | -3/Research | Core integrity fell below 50% 10446 | -3/Research | Core integrity fell below 20% 10462 | -3/Research | Destroyed by C-35 Carver with Carbide Saw Last Messages --------------- dispatching Cutter reinforcements to area. K-01 Serf destroyed. ALERT: Potential suspicious activity detected, Programmers report to Research Zone 7U. ALERT: Security rotation in progress. Triggered Stasis Trap. A bubble of rippling energy engulfs the area. Field strength at 84. Field strength at 68. Field strength at 41. Field strength at 19. Stasis field depleted. Knocked back. C-35 Carver knocked back. Knocked back. Acquired Impulse Thruster. Impulse Thruster Array destroyed. Impulse Thruster severed. S-43 Plague suffers critical hit (Destroy). S-43 Plague destroyed. Map ----- +----------------------------------------------------+ | ?????????????????????????????????????????????????? | | ?????????????????????????????????????????????????? | | ?????????????????????????????????????????????????? | | ?????????????????????????????????????????????????? | | ?????????????????????????????????????????????????? | | ?????????????????????????????????????????????????? | | ?????????????????????????????????????????????????? | | ?????????????????????????????????????????????????? | | ?????????????????????????????????????????????????? | | ?????????????????????????????????????????????????? | | ?????????????????????????????????????????????????? | | ?????????????????????????????????????????????????? | | ?????????????????????????????????????????????????? | | ?????????????????????????????????????????????????? | | ?????????????????????????????????????????????????? | | ?????????????????????????????????????????????????? | | ?????????????????????????????????????????????????? | | ?????????????????????? #########""" ""???????????? | | ??????????????????????? ???????????? | | ??????????????????????? ??????????+?? | | ???????????????????????? ?? ????????? | | ???????????????????????? """ ""?? ???????? | | ????????????????????????# """ """ ??????? | | ????????????????????????# """ """ ??????? | | ????????????????????????# ?????? | | ????????????????????????#@ ?????? | | ????????????????????????#c ?????? | | ????????????????????????#cc ?????? | | ????????????????????????# ????? | | ????????????????????????+ ????? | | ????????????????????????# ?????? | | ????????????????????????# ######????????? | | ????????????????????????# !! ##????/#####??? | | ????????????????????????# ! #???? ??? | | ?????????????????????#### #???? ?? | | ??????????????????# #????? ?? | | ??????????????????# ##### %= #??????? ?? | | ????????????????????????######## s #???????? ? | | ???????????????????????????????# #????????? ? | | ???????????????????????????????# #####+######+# | | ?????????????????????????####### | | ???????????????????????+ | | ???????????????????????######### | | ???????????????????????????????# | | ???????????????????????????????############### | | ?????????????????????????????????????????????# | | ?????????????????????????????????????????????# | | ?????????????????????????????????????????????# | | ?????????????????????????????????+?+?????????# | | ?????????????????????????????????????????????# | +----------------------------------------------------+ Best States ------------- Heat Dissipation 46 Energy Generation 29 Energy Capacity 340 Matter Stores 300 Matter Capacity 300 Sight Range 16 Robot Scan Range 20 Terrain Scan Density 10 Armor Coverage 800 Resistance: TH 15 Evasion (%) 62 Recoil Reduction 3 Defensive Hacking 10 Item Schematics ----------------- None Robot Schematics ------------------ None Fabricated ------------ Nothing Repaired ---------- Nothing Alien Tech Used ----------------- None Achievements -------------- None Challenges ------------ None Game ------ Seed AnalysisMiniDrivehammer Manual? 0 Play Time 01:09:43 Cumulative 198.4 hours Start 2025.09.12 @ 14:36:45 End 2025.09.12 @ 15:52:36 Sessions 1 Manual Loads 0 Difficulty Rogue Special Mode None Game No. 169 Rogue 169 Adventurer 0 Explorer 0 Win Type - Total 10 Types 4/0/2/2/1/0/0/0/0/1 Lore% 89 Gallery% 84 Achievement% 66 Wizard Run 0 Options --------- Layout 1 ASCII 0 Keyboard 0 Movement Numpad Keybinds 0 Fullscreen 1 Font 24/Proggy Map View 50x35 Zoom Use 0% Tactical HUD 0 Map Filters NONE Filters NONE Steam 1 RUN: 657301fd-8ead-4c2f-a2cf-fc36a3dff86a